Cogmind - Beta 13 @@@ ROGUE MODE // 2024.04.07 @ 16:38:11 Player: Eusmilis Result: Destroyed by L-61 Swordsman with Power Sword Performance ------------- Evolutions (6) 3000 Regions Visited (12) 2400 Robots Destroyed (45) 225 Value Destroyed (1254) 1254 Prototype IDs (13) 260 Alien Tech Used (0) 0 Bonus (1309) 1309 TOTAL SCORE: 8448 Bonus ------- Follower Combat Kills 409 Met Data Miner 300 Met Imprinter 300 Was Imprinted 300 Cogmind --------- Core Integrity 0/1150 Matter 125/300 Energy 23/100 System Corruption 0% Temperature Warning (360) Movement Core (400) Ox7 Location -4/Factory Parts ------- > --- POWER (2) -------- (None) > --- PROPULSION (3) --- (None) > --- UTILITY (10) ----- Large Storage Unit Signal Interpreter Core Analyzer > --- WEAPON (4) ------- CR-A16's Pointy Stick > --- INVENTORY (15) --- Improved Ion Engine Improved Deuterium Engine Aluminum Leg Aluminum Leg Enhanced Flexi-carbon Leg Large Storage Unit EM Shotgun Beamcaster Improved Heavy Laser Light EM Pulse Cannon Light EM Pulse Cannon Mining Laser Peak State ------------ > --- POWER ------------ Fusion Compressor Neutrino Core > --- PROPULSION ------- Carbon-fiber Leg Makeshift Leg Makeshift Leg > --- UTILITY ---------- Large Storage Unit Compact Matter Pod Signal Interpreter Advanced Terrain Scanner Core Analyzer Hardened Light Armor Plating Hardened Light Armor Plating Hardened Light Armor Plating Hacking Suite High-powered Tractor Beam > --- WEAPON ----------- Particle Gun Beamcaster Wave Gun Particle Cannon > --- INVENTORY -------- Improved Ion Engine Improved Deuterium Engine Aluminum Leg Aluminum Leg Enhanced Flexi-carbon Leg EM Shotgun Improved Heavy Laser Light EM Pulse Cannon Light EM Pulse Cannon Disruptor Cannon Autogun Heavy Missile Launcher Mining Laser CR-A16's Pointy Stick [Rating: 66] Favorites ----------- Power Improved Ion Engine Engine Improved Ion Engine Power Core Fusion Compressor Propulsion Carbon-fiber Leg Leg Carbon-fiber Leg Utility Hacking Suite Device Sensor Array Storage Large Storage Unit Processor Signal Interpreter Hackware Hacking Suite Protection Hardened Light Armor Plating Weapon Beamcaster Energy Gun Beamcaster Energy Cannon Particle Cannon Ballistic Gun Light Assault Rifle Launcher Heavy Missile Launcher Special Weapon Mining Laser Slashing Weapon Mining Claw Piercing Weapon CR-A16's Pointy Stick Build | -11 -10 -9 -9 -7 -6 -6 -6 -6 -6 -5 -5 -4 ------- Run | Yrd Mat Mat Min Zio Pro Fac Low Low Dat Pro Fac Fac Slots Evolved 12 | . . 2 . . . 6 . . . . 2 2 Power 1 | . . . . . . 1 . . . . . . Propulsion 1 | . . . . . . 1 . . . . . . Utility 8 | . . 2 . . . 3 . . . . 2 1 Weapon 2 | . . . . . . 1 . . . . . 1 Parts Attached 67 | 7 12 13 7 1 1 10 . . . . 5 11 Power 11 | 1 3 2 1 . . 3 . . . . 1 . Engine 9 | 1 3 2 1 . . 2 . . . . . . Core 2 | . . . . . . 1 . . . . 1 . Reactor . | . . . . . . . . . . . . . Propulsion 15 | 2 3 4 3 1 . 1 . . . . 1 . Treads . | . . . . . . . . . . . . . Leg 15 | 2 3 4 3 1 . 1 . . . . 1 . Wheel . | . . . . . . . . . . . . . Hover . | . . . . . . . . . . . . . Flight . | . . . . . . . . . . . . . Utility 18 | 2 3 3 . . 1 4 . . . . 3 2 Device 6 | 1 1 1 . . 1 2 . . . . . . Storage 5 | 1 1 1 . . . 1 . . . . . 1 Processor 3 | . . 1 . . . 1 . . . . . 1 Hackware 1 | . 1 . . . . . . . . . . . Protection 3 | . . . . . . . . . . . 3 . Artifact . | . . . . . . . . . . . . . Weapon 23 | 2 3 4 3 . . 2 . . . . . 9 Energy Gun 7 | 1 1 . 2 . . 1 . . . . . 2 Energy Cannon 3 | . . 1 . . . . . . . . . 2 Ballistic Gun 7 | 1 1 2 1 . . 1 . . . . . 1 Ballistic Cannon . | . . . . . . . . . . . . . Launcher 2 | . . . . . . . . . . . . 2 Special Weapon 2 | . . 1 . . . . . . . . . 1 Impact Weapon . | . . . . . . . . . . . . . Slashing Weapon 1 | . 1 . . . . . . . . . . . Piercing Weapon 1 | . . . . . . . . . . . . 1 Special Melee Weapon . | . . . . . . . . . . . . . Unidentified Prototypes . | . . . . . . . . . . . . . Parts Lost 23 | . 1 3 1 . 1 . . . . . . 17 Power 3 | . . 1 . . . . . . . . . 2 Propulsion 4 | . . 1 . . . . . . . . . 3 Utility 9 | . 1 . . . 1 . . . . . . 7 Weapon 7 | . . 1 1 . . . . . . . . 5 Highest Loss Streak 17 | . 1 2 1 . 1 . . . . . . 17 To Critical Strikes . | . . . . . . . . . . . . . Average Slot Usage (%) 99 | . 98 99 99 100 99 100 100 100 100 99 99 95 Engine 9 | . 13 11 11 11 11 8 6 6 6 6 4 . Core 1 | . . . . . . 3 6 6 6 6 5 9 Leg 21 | . 28 21 22 22 22 20 20 20 20 20 16 14 Device 9 | . 2 11 11 11 10 13 13 13 13 13 11 9 Storage 11 | . 14 11 11 11 11 13 13 13 13 13 11 9 Processor 9 | . . 10 11 11 11 13 13 13 13 12 5 8 Hackware 9 | . 11 11 11 11 11 6 6 6 6 6 5 5 Protection 1 | . . . . . . . . . . . 17 14 Energy Gun 11 | . 13 9 10 11 11 13 13 13 13 13 11 9 Ballistic Gun 9 | . 13 10 11 11 11 6 6 6 6 6 5 . Naked Turns . | . . . . . . . . . . . . . Heaviest Build 76 | 12 30 35 34 34 34 51 49 49 49 49 68 76 Greatest Support 55 | 20 26 26 30 35 35 55 55 55 55 55 55 55 Greatest Overweight (x) 2 | . 1 2 1 1 . . . . . . 1 1 Average Overweight (x) . | . . 1 1 . . . . . . . 1 1 Largest Inventory Capacity 15 | 8 15 15 15 15 15 15 15 15 15 15 15 15 Average Capacity 14 | 7 13 15 15 15 15 15 15 15 15 15 15 15 Most Carried 15 | 7 15 15 15 15 15 15 15 15 15 15 15 15 Average Carried 13 | 3 11 13 13 14 14 14 14 15 15 15 14 14 Final Capacity 15 | 8 15 15 15 15 15 15 15 15 15 15 15 15 Final Carried 15 | 7 15 15 13 15 15 15 15 15 15 15 15 12 Class Distribution -------------------- 38% | Scavenger-Mutant 31% | Mutant 20% | Scavenger-Skirmisher 9% | Scavenger-Tank Dominant Class ---------------- Mutant | -10/Materials Mutant | -9/Materials Scavenger-Mutant | -9/Mines Scavenger-Mutant | -7/Zion Scavenger-Mutant | -6/Proximity Caves Scavenger-Skirmisher | -6/Factory Scavenger-Skirmisher | -6/Lower Caves Scavenger-Skirmisher | -6/Lower Caves Scavenger-Skirmisher | -6/Data Miner Scavenger-Skirmisher | -5/Proximity Caves Scavenger-Tank | -5/Factory Scavenger-Tank | -4/Factory Resources | -11 -10 -9 -9 -7 -6 -6 -6 -6 -6 -5 -5 -4 ----------- Run | Yrd Mat Mat Min Zio Pro Fac Low Low Dat Pro Fac Fac Matter Collected 1234 | 306 178 234 122 160 22 90 . 26 . 34 62 . Remotely 228 | . . . . . 16 90 . 26 . 34 62 . Salvage Created 1321 | 142 317 425 132 . 60 . . . . 64 67 114 Parts 90 | 12 27 25 7 . 4 . . . . 4 4 7 Haulers Intercepted . | . . . . . . . . . . . . . Recyclers Shooed 6 | 1 2 . 3 . . . . . . . . . Parts Field Recycled . | . . . . . . . . . . . . . Retrieved Matter . | . . . . . . . . . . . . . Parts Self-Destructed 27 | . . . . 5 13 . . . . 9 . . Prevented 4 | . . . . . 4 . . . . . . . Kills | -11 -10 -9 -9 -7 -6 -6 -6 -6 -6 -5 -5 -4 ------- Run | Yrd Mat Mat Min Zio Pro Fac Low Low Dat Pro Fac Fac Combat Hostiles Destroyed 32 | . 5 14 4 . 1 . . . . 3 1 4 Guns 29 | . 5 14 4 . 1 . . . . 3 1 1 AOE 3 | . . . . . . . . . . . . 3 Classes Destroyed 9 | 2 3 2 . . . . . . . . . 2 Builder 2 | . . . . . . . . . . . . 2 Tunneler 5 | 4 1 . . . . . . . . . . . Recycler 3 | 1 1 . 1 . . . . . . . . . Operator 1 | . 1 . . . . . . . . . . . Watcher 2 | . 1 1 . . . . . . . . . . Swarmer 14 | . . 7 4 . . . . . . 3 . . Grunt 12 | . 5 5 . . . . . . . . . 2 Sentry 4 | . . 2 . . 1 . . . . . 1 . Hunter 2 | . . . . . . . . . . . . 2 Best Kill Streak 6 | 4 3 6 2 . 1 . . . . 3 1 4 Combat Bots Only 5 | . 2 5 2 . 1 . . . . 3 1 2 Max Kills in Single Turn 2 | 2 1 1 1 . 1 . . . . 1 1 2 Gunslinging . | . . . . . . . . . . . . . Exploded 2 | . . . . . . . . . . . . 2 Melee . | . . . . . . . . . . . . . Uniques/NPCs Destroyed . | . . . . . . . . . . . . . Combat | -11 -10 -9 -9 -7 -6 -6 -6 -6 -6 -5 -5 -4 -------- Run | Yrd Mat Mat Min Zio Pro Fac Low Low Dat Pro Fac Fac Hostile Shots Fired 313 | . 26 108 22 . 15 9 . . . 15 4 114 Missed 79 | . 5 28 6 . 7 6 . . . 2 1 24 Damage Taken 4418 | . 252 903 125 . 110 27 . . . 190 120 2691 Core 1536 | . 59 214 6 . 20 . . . . 31 21 1185 Absorbed by Shields . | . . . . . . . . . . . . . Regen/Repaired (Parts) 171 | . 93 . . . . . . . . . 78 . Core Remaining (%) 81 | 100 76 . . . 40 . . . . 96 97 . Volleys Fired 162 | 12 36 45 25 . 12 . . . . 7 3 22 Largest 4 | 2 2 2 2 . 2 . . . . 3 3 4 Hottest 308 | 60 60 100 60 . 95 . . . . 163 163 308 Shots Fired 327 | 24 70 89 40 . 24 . . . . 21 9 50 Gun 300 | 24 70 88 40 . 24 . . . . 21 9 24 Cannon 12 | . . . . . . . . . . . . 12 Launcher 8 | . . . . . . . . . . . . 8 Special 7 | . . 1 . . . . . . . . . 6 Kinetic 142 | 12 34 44 25 . 12 . . . . 6 3 6 Thermal 160 | 12 36 45 . . 12 . . . . 15 6 34 Explosive 8 | . . . . . . . . . . . . 8 Electromagnetic 17 | . . . 15 . . . . . . . . 2 Robot Hit Streak 14 | 4 14 11 8 . 3 . . . . 2 5 8 Robot Miss Streak 5 | 2 4 5 5 . 5 . . . . 5 1 3 Penetration Max . | . . . . . . . . . . . . . Secondary Targets 2 | . . 1 1 . . . . . . . . . Max Gunslinging Chain 1 | . . 1 1 . . . . . . . . . Shots Hit Robots 185 | 13 47 55 23 . 9 . . . . 8 6 24 Core Hits 88 | 6 19 24 8 . 5 . . . . 4 5 17 Critical Kills . | . . . . . . . . . . . . . Critical Parts Destroyed . | . . . . . . . . . . . . . Critical Strikes 5 | . . . . . . . . . . 2 . 3 Burn 5 | . . . . . . . . . . 2 . 3 Melee Attacks 7 | . 3 . . . . . . . . . . 4 Impact . | . . . . . . . . . . . . . Slashing 3 | . 3 . . . . . . . . . . . Piercing 4 | . . . . . . . . . . . . 4 Sneak Attacks . | . . . . . . . . . . . . . Combat Hostiles . | . . . . . . . . . . . . . Follow-up Attacks . | . . . . . . . . . . . . . Damage Inflicted 3377 | 169 560 656 222 . 115 . . . . 148 89 1418 Guns 2161 | 169 560 656 222 . 115 . . . . 148 89 202 Cannons 123 | . . . . . . . . . . . . 123 Explosions 1044 | . . . . . . . . . . . . 1044 Melee 49 | . . . . . . . . . . . . 49 Ramming . | . . . . . . . . . . . . . Kinetic 1003 | 113 289 355 125 . 27 . . . . 17 26 51 Thermal 1429 | 56 271 301 . . 88 . . . . 131 63 519 Explosive 791 | . . . . . . . . . . . . 791 Electromagnetic 105 | . . . 97 . . . . . . . . 8 Impact . | . . . . . . . . . . . . . Slashing . | . . . . . . . . . . . . . Piercing 49 | . . . . . . . . . . . . 49 Highest Corruption 2 | . . . . . . 2 2 2 2 2 . . Average Corruption 1 | . . . . . . 1 2 2 2 2 . . Corruption Purged . | . . . . . . . . . . . . . Corruption Blocked 8 | . . . . . . . . 2 . 6 . . Effects 14 | . . . . . . 1 2 4 . 7 . . Message Errors 5 | . . . . . . 1 1 . . 3 . . Matter Fused 3 | . . . . . . . . 2 . 1 . . Heat Flow Errors 3 | . . . . . . . 1 1 . 1 . . Energy Discharges 1 | . . . . . . . . 1 . . . . Misfires 1 | . . . . . . . . . . 1 . . Weapon Failures 1 | . . . . . . . . . . 1 . . Overload Shots . | . . . . . . . . . . . . . Overflow Damage 17 | . . . . . . . . . . . . 17 Projectiles . | . . . . . . . . . . . . . Explosions 17 | . . . . . . . . . . . . 17 Melee . | . . . . . . . . . . . . . Knockbacks . | . . . . . . . . . . . . . Impact . | . . . . . . . . . . . . . Kinetic . | . . . . . . . . . . . . . Secondary . | . . . . . . . . . . . . . Self-Inflicted Damage 119 | . . . . . . . . . . . . 119 Shots 3 | . . . . . . . . . . . . 3 Rammed . | . . . . . . . . . . . . . Targets Rammed . | . . . . . . . . . . . . . Kicked . | . . . . . . . . . . . . . Crushed . | . . . . . . . . . . . . . Highest Temperature 837 | . 54 28 32 . 141 . 268 152 . 391 342 837 Average Temperature 165 | . 21 8 12 . 60 . 136 79 . 204 169 366 Received Heat Transfer 945 | . 138 291 . . . 12 . . . . 18 486 Effects 40 | . . . . . . . . . . 1 1 38 Shutdowns 5 | . . . . . . . . . . . 1 4 Energy Bleed 4 | . . . . . . . . . . . . 4 Interference 8 | . . . . . . . . . . . . 8 Matter Decay 4 | . . . . . . . . . . . . 4 Short Circuit 5 | . . . . . . . . . . 1 . 4 Damage (minor) 7 | . . . . . . . . . . . . 7 Damage (major) 4 | . . . . . . . . . . . . 4 Damage (core) 3 | . . . . . . . . . . . . 3 Siege Activations . | . . . . . . . . . . . . . Robots Corrupted . | . . . . . . . . . . . . . Combat Hostiles . | . . . . . . . . . . . . . Parts Fried . | . . . . . . . . . . . . . Impact Corruptions . | . . . . . . . . . . . . . Robots Melted . | . . . . . . . . . . . . . Combat Hostiles . | . . . . . . . . . . . . . Parts Melted 3 | . 2 1 . . . . . . . . . . Heat Transferred 3031 | 125 625 675 . . 148 . . . . 407 148 903 Parts Sabotaged . | . . . . . . . . . . . . . Parts Stolen . | . . . . . . . . . . . . . Parts Stripped . | . . . . . . . . . . . . . Power Chain Reactions . | . . . . . . . . . . . . . Alert | -11 -10 -9 -9 -7 -6 -6 -6 -6 -6 -5 -5 -4 ------- Run | Yrd Mat Mat Min Zio Pro Fac Low Low Dat Pro Fac Fac Peak Influence 623 | 25 145 240 177 . . 623 . . . . 83 229 Initial 481 | . 16 2 52 . . 481 . . . . 35 40 Average 116 | 11 41 100 49 . . 487 . . . . 42 157 Maximum Alert Level 2 | . . 1 . . . 2 . . . . . 1 Low Security (%) 81 | 100 100 98 100 . . . . . . . 100 38 Level 1 9 | . . 1 . . . 21 . . . . . 61 Level 2 8 | . . . . . . 78 . . . . . . Level 3 . | . . . . . . . . . . . . . Level 4 . | . . . . . . . . . . . . . Level 5 . | . . . . . . . . . . . . . High Security . | . . . . . . . . . . . . . Max Security . | . . . . . . . . . . . . . Squads Dispatched 7 | . 3 . . . . 2 . . . . . 2 Investigation 5 | . 3 . . . . 1 . . . . . 1 Extermination 1 | . . . . . . 1 . . . . . . Reinforcement 1 | . . . . . . . . . . . . 1 Assault . | . . . . . . . . . . . . . Garrison . | . . . . . . . . . . . . . Intercept . | . . . . . . . . . . . . . Searches Triggered 1 | . . . . . . 1 . . . . . . Construction Impeded 1 | . . . . . . . . . . . . 1 Haulers Reinforced . | . . . . . . . . . . . . . Active Scanning Responses . | . . . . . . . . . . . . . Cargo Convoy Interrupts . | . . . . . . . . . . . . . Stealth | -11 -10 -9 -9 -7 -6 -6 -6 -6 -6 -5 -5 -4 --------- Run | Yrd Mat Mat Min Zio Pro Fac Low Low Dat Pro Fac Fac Distress Signals 4 | . 1 2 . . 1 . . . . . . . Communications Jammed . | . . . . . . . . . . . . . Distress Signals . | . . . . . . . . . . . . . Times Spotted 73 | . 8 22 8 . 8 7 . 1 . 9 1 9 Peak Tracking Total 5 | . 2 5 3 . 2 5 . 1 . 5 1 5 Tactical Retreats 5 | . . 2 1 . . 2 . . . . . . Traps | -11 -10 -9 -9 -7 -6 -6 -6 -6 -6 -5 -5 -4 ------- Run | Yrd Mat Mat Min Zio Pro Fac Low Low Dat Pro Fac Fac Traps Triggered 6 | . 1 2 . . . 2 . . . . 1 . Indirectly . | . . . . . . . . . . . . . Trap Hack Attempts . | . . . . . . . . . . . . . Triggered . | . . . . . . . . . . . . . Disarmed . | . . . . . . . . . . . . . Reprogrammed . | . . . . . . . . . . . . . Reused . | . . . . . . . . . . . . . Traps Extracted . | . . . . . . . . . . . . . Installed . | . . . . . . . . . . . . . Triggered . | . . . . . . . . . . . . . Machines | -11 -10 -9 -9 -7 -6 -6 -6 -6 -6 -5 -5 -4 ---------- Run | Yrd Mat Mat Min Zio Pro Fac Low Low Dat Pro Fac Fac Machines Disabled 9 | . . . . . . 2 . . . . . 7 Max in Single Turn 5 | . . . . . . . . . . . . 5 Machines Repaired . | . . . . . . . . . . . . . Machines Dismantled . | . . . . . . . . . . . . . Machines Sabotaged . | . . . . . . . . . . . . . Overloaded Fab Kills . | . . . . . . . . . . . . . Hacking | -11 -10 -9 -9 -7 -6 -6 -6 -6 -6 -5 -5 -4 --------- Run | Yrd Mat Mat Min Zio Pro Fac Low Low Dat Pro Fac Fac Machines Accessed 21 | . 8 3 . . . 1 . . 4 1 3 1 Terminals 11 | . 6 3 . . . 1 . . . 1 . . Fabricators 1 | . . . . . . . . . . . . 1 Repair Stations 2 | . 1 . . . . . . . . . 1 . Recycling Units 1 | . 1 . . . . . . . . . . . Scanalyzers 1 | . . . . . . . . . . . 1 . Garrison Access 1 | . . . . . . . . . . . 1 . Total Hacks 70 | . 26 4 . . . 1 . . 30 1 5 3 Successful 60 | . 20 2 . . . 1 . . 30 1 3 3 Failed 10 | . 6 2 . . . . . . . . 2 . Catastrophic 2 | . . 1 . . . . . . . . 1 . Database Lockouts . | . . . . . . . . . . . . . Manual 13 | . . . . 1 . 12 . . . . . . Terminals 23 | . 17 4 . . . 1 . . . 1 . . Fabricators 3 | . . . . . . . . . . . . 3 Repair Stations 9 | . 6 . . . . . . . . . 3 . Recycling Units 3 | . 3 . . . . . . . . . . . Scanalyzers 1 | . . . . . . . . . . . 1 . Garrison Access 1 | . . . . . . . . . . . 1 . Terminal Hacks 45 | . 11 2 . . . 1 . . 30 1 . . Record 10 | . . . . . . . . . 9 1 . . Part Schematic 11 | . . . . . . . . . 11 . . . Robot Schematic 7 | . . . . . . . . . 7 . . . Prototype ID Bank 4 | . 1 . . . . . . . 3 . . . Open DSF 1 | . . . . . . 1 . . . . . . Branch Access Points 1 | . . 1 . . . . . . . . . . Terminal Index 1 | . 1 . . . . . . . . . . . Recycling Unit Index 1 | . 1 . . . . . . . . . . . Locate Traps 2 | . 1 1 . . . . . . . . . . Transport Status 1 | . 1 . . . . . . . . . . . Investigation Status 1 | . 1 . . . . . . . . . . . Hauler Manifests 2 | . 2 . . . . . . . . . . . Registered Components 1 | . 1 . . . . . . . . . . . Zone Layout 2 | . 2 . . . . . . . . . . . Fabricator Hacks 3 | . . . . . . . . . . . . 3 Network Status 1 | . . . . . . . . . . . . 1 Load Schematic 1 | . . . . . . . . . . . . 1 Build 1 | . . . . . . . . . . . . 1 Repair Station Hacks 8 | . 6 . . . . . . . . . 2 . Scan Component 4 | . 3 . . . . . . . . . 1 . Repair 4 | . 3 . . . . . . . . . 1 . Recycling Unit Hacks 3 | . 3 . . . . . . . . . . . Process 1 | . 1 . . . . . . . . . . . Report Inventory 1 | . 1 . . . . . . . . . . . Retrieve Matter 1 | . 1 . . . . . . . . . . . Scanalyzer 1 | . . . . . . . . . . . 1 . Insert Component 1 | . . . . . . . . . . . 1 . Garrison Access Hacks . | . . . . . . . . . . . . . Unauthorized Hacks . | . . . . . . . . . . . . . Terminals . | . . . . . . . . . . . . . Fabricators . | . . . . . . . . . . . . . Repair Stations . | . . . . . . . . . . . . . Recycling Units . | . . . . . . . . . . . . . Scanalyzers . | . . . . . . . . . . . . . Garrison Access . | . . . . . . . . . . . . . Data Cores Recovered 1 | . 1 . . . . . . . . . . . Used 1 | . 1 . . . . . . . . . . . Hacking Detections 11 | . 5 2 . . . 1 . . . . 2 1 Full Trace Events 2 | . 1 . . . . . . . . . . 1 Feedback Events . | . . . . . . . . . . . . . Feedback Blocked . | . . . . . . . . . . . . . Robot Schematics Acquired 10 | . . . . 3 . . . . 7 . . . Robots Built . | . . . . . . . . . . . . . Authchips . | . . . . . . . . . . . . . Time . | . . . . . . . . . . . . . Total Robot Build Rating . | . . . . . . . . . . . . . Part Schematics Acquired 25 | . . . . 14 . . . . 11 . . . Parts Built . | . . . . . . . . . . . . . Authchips . | . . . . . . . . . . . . . Time 117 | . . . . . . . . . . . . 117 Total Part Build Rating . | . . . . . . . . . . . . . Parts Repaired 4 | . 3 . . . . . . . . . 1 . Time 122 | . 78 . . . . . . . . . 44 . Parts Recycled . | . . . . . . . . . . . . . Recycled Matter 228 | . 228 . . . . . . . . . . . Retrieved Matter 389 | . 389 . . . . . . . . . . . Retrieved Components . | . . . . . . . . . . . . . Parts Scanalyzed . | . . . . . . . . . . . . . Part Schematics Acquired . | . . . . . . . . . . . . . Parts Damaged . | . . . . . . . . . . . . . Bothacking | -11 -10 -9 -9 -7 -6 -6 -6 -6 -6 -5 -5 -4 ------------ Run | Yrd Mat Mat Min Zio Pro Fac Low Low Dat Pro Fac Fac Used RIF Installer . | . . . . . . . . . . . . . Robots Hacked . | . . . . . . . . . . . . . Non-combat . | . . . . . . . . . . . . . Combat . | . . . . . . . . . . . . . Robot Hacks Applied . | . . . . . . . . . . . . . Relay Couplers Released . | . . . . . . . . . . . . . Fabnet Peak Effective % . | . . . . . . . . . . . . . Robots Rewired . | . . . . . . . . . . . . . Allies Hacked . | . . . . . . . . . . . . . Hacks Repelled 1 | . . . . . . . . . . 1 . . Allies | -11 -10 -9 -9 -7 -6 -6 -6 -6 -6 -5 -5 -4 -------- Run | Yrd Mat Mat Min Zio Pro Fac Low Low Dat Pro Fac Fac Total Allies 12 | . . . 3 4 . 5 . . . . . . Largest Group 7 | . . . 3 7 7 5 5 5 5 5 . . Highest-Rated Group 190 | . . . 40 190 190 186 186 186 186 186 . . Highest-Rated Ally 51 | . . . 16 39 39 51 51 51 51 51 . . Zionite Dispatches 2 | . . . . . . 2 . . . . . . Fire 1 | . . . . . . 1 . . . . . . Hacker 1 | . . . . . . 1 . . . . . . Total Orders . | . . . . . . . . . . . . . Ally Attacks 83 | . . . . . 47 13 . 6 . 17 . . Total Damage 1317 | . . . . . 399 513 . 106 . 299 . . Kills 13 | . . . . . 5 4 . 1 . 3 . . Allies Corrupted . | . . . . . . . . . . . . . Allies Melted . | . . . . . . . . . . . . . Intel | -11 -10 -9 -9 -7 -6 -6 -6 -6 -6 -5 -5 -4 ------- Run | Yrd Mat Mat Min Zio Pro Fac Low Low Dat Pro Fac Fac Robot Analysis Total . | . . . . . . . . . . . . . Derelict Logs Recovered 5 | . . . 1 1 1 . 1 . . 1 . . Drone Launches . | . . . . . . . . . . . . . Drone Recoveries . | . . . . . . . . . . . . . Zionite Intel Received 1 | . . . . . . 1 . . . . . . Active Terminals 1 | . . . . . . 1 . . . . . . Exploration | -11 -10 -9 -9 -7 -6 -6 -6 -6 -6 -5 -5 -4 ------------- Run | Yrd Mat Mat Min Zio Pro Fac Low Low Dat Pro Fac Fac Turns Passed 8927 | 139 1299 986 785 2131 879 509 304 415 121 493 364 502 Spaces Moved 5072 | 74 625 414 352 1331 614 347 226 310 89 346 149 195 Core 4 | 4 . . . . . . . . . . . . Treads . | . . . . . . . . . . . . . Legs 5068 | 70 625 414 352 1331 614 347 226 310 89 346 149 195 Wheels . | . . . . . . . . . . . . . Hover . | . . . . . . . . . . . . . Flight . | . . . . . . . . . . . . . Fastest Speed 50 | 50 120 120 190 130 130 133 133 133 133 133 203 203 Average Speed 156 | 116 166 190 190 156 130 133 133 133 133 133 203 203 Slowest Speed 260 | 120 190 260 190 190 130 133 133 133 133 133 203 203 Overloaded Moves . | . . . . . . . . . . . . . Propulsion Burnouts . | . . . . . . . . . . . . . Robots Hopped . | . . . . . . . . . . . . . Cave-ins Triggered . | . . . . . . . . . . . . . Exploration Rate (%) 49 | 4 87 37 91 91 85 11 47 50 72 60 5 5 Regions Visited 12 Branch Regions 7 Pre-discovered Areas 2 | . . . . 1 . . . . 1 . . . Known Exits Taken 10 | . . 1 1 1 1 1 1 1 1 1 1 . Unknown Exits Taken 2 | 1 1 . . . . . . . . . . . Scrap Searched 4 | . . . 2 2 . . . . . . . . Spaces Dug 4 | . 3 1 . . . . . . . . . . Terrain Destroyed 57 | . 3 1 . . . . . . . . . 53 Melee 3 | . 3 . . . . . . . . . . . Projectile 1 | . . 1 . . . . . . . . . . AOE 53 | . . . . . . . . . . . . 53 Terrain Rammed . | . . . . . . . . . . . . . Walls Destroyed . | . . . . . . . . . . . . . Machines Disabled . | . . . . . . . . . . . . . Actions | -11 -10 -9 -9 -7 -6 -6 -6 -6 -6 -5 -5 -4 --------- Run | Yrd Mat Mat Min Zio Pro Fac Low Low Dat Pro Fac Fac Total 5767 | 99 820 522 436 1376 673 395 230 313 91 365 205 242 Wait 390 | . 112 39 46 40 46 31 3 4 3 12 45 9 Move 5060 | 73 624 413 351 1330 613 346 225 309 88 345 148 195 Hop . | . . . . . . . . . . . . . Pick Up 48 | 7 19 7 2 3 1 5 1 . . . 3 . Fast Attach 16 | 7 2 5 . . . . . . . . 1 1 Attach 21 | . 1 4 1 . 1 6 . . . . 3 5 Detach 1 | . . . . . . . . . . . . 1 Swap 30 | . 9 4 6 1 . 4 . . . . 1 5 Drop 32 | . 14 5 5 2 . 3 1 . . 1 1 . Fire 162 | 12 36 45 25 . 12 . . . . 7 3 22 Melee 7 | . 3 . . . . . . . . . . 4 Ram . | . . . . . . . . . . . . . Kick . | . . . . . . . . . . . . . Crush . | . . . . . . . . . . . . . Escape Stasis . | . . . . . . . . . . . . . Rewire . | . . . . . . . . . . . . . Trap . | . . . . . . . . . . . . . Miscellaneous . | . . . . . . . . . . . . . Route ------- -11/Scrapyard -10/Materials (discovered 3 exits: *Mat x2 / [*Min]) -9/Materials (discovered 3 exits: *Mat / *Min x2) -9/Mines (discovered 3 exits: *Mat x2 / *Zio) -7/Zion -6/Proximity Caves -6/Factory -6/Lower Caves (discovered 2 exits: *Low / *Dat) -6/Lower Caves -6/Data Miner -5/Proximity Caves -5/Factory (discovered 3 exits: *Fac / Upp x2) -4/Factory History --------- Turn | Location | Event 15 | -11/Scrapyard | Discovered new exit (range 15) 140 | -11/Scrapyard | Entered Materials 292 | -10/Materials | Discovered new exit (range 14) 313 | -10/Materials | Build established: Mutant 398 | -10/Materials | Discovered new exit (range 16) 949 | -10/Materials | Repaired Lgt. Ion Engine 976 | -10/Materials | Repaired Lgt. Ion Engine 1004 | -10/Materials | Repaired Sml. Laser 1310 | -10/Materials | Discovered new exit (range 12) 1439 | -10/Materials | Entered another Materials area 1439 | -9/Materials | Evolved 2 slots: Utility x2 1719 | -9/Materials | Discovered new exit (range 15) 1745 | -9/Materials | Identified exit to Materials 2238 | -9/Materials | Core integrity fell below 50% 2291 | -9/Materials | Identified exit to Mines 2425 | -9/Materials | Entered Mines 2436 | -9/Mines | Met a Derelict bent on vengeance 2499 | -9/Mines | Joined a pair of Derelicts in attacking an 0b10 outpost 2625 | -9/Mines | Discovered exit to Materials (range 14) 3112 | -9/Mines | Build established: Scavenger-Mutant 3162 | -9/Mines | Assisted by bots powering up and referring to "LRC-V3" 3199 | -9/Mines | A Derelict revealed a hidden shortcut to a safe place 3204 | -9/Mines | Identified exit to Zion 3210 | -9/Mines | Entered Zion 3210 | -7/Zion | Accompanied by 3 allies 3334 | -7/Zion | Found CR-A16's Pointy Stick 3431 | -7/Zion | Learned Factory stockpile data 3716 | -7/Zion | Learned location of Recycling (-7) 3983 | -7/Zion | Imprinted 3985 | -7/Zion | Declared Zion's savior 4567 | -7/Zion | Discovered new exit (range 12) 4580 | -7/Zion | Identified exit to Proximity Caves 5341 | -7/Zion | Entered Proximity Caves 5341 | -6/Proximity Caves | Accompanied by 7 allies 5347 | -6/Proximity Caves | Spotter reported a threat 5491 | -6/Proximity Caves | Spotter reported a threat 5544 | -6/Proximity Caves | Spotter reported a threat 5661 | -6/Proximity Caves | Learned Factory garrison access intel 6009 | -6/Proximity Caves | Attracted the attention of an 0b10 checkpoint 6203 | -6/Proximity Caves | Discovered new exit (range 14) 6219 | -6/Proximity Caves | Identified exit to Factory 6220 | -6/Proximity Caves | Entered Factory 6220 | -6/Factory | Accompanied by 3 allies 6220 | -6/Factory | Evolved 6 slots: Power x1, Propulsion x1, Utility x3, Weapon x1 6222 | -6/Factory | Loaded intel: 4 garrison access locations 6429 | -6/Factory | Lost 3 allies 6522 | -6/Factory | Build established: Scavenger-Skirmisher 6566 | -6/Factory | Retrieved Zion intel report: Active Terminals 6570 | -6/Factory | Search patrols dispatched 6614 | -6/Factory | Zion Hacker squad teleported in 6622 | -6/Factory | Zion Fire squad teleported in 6673 | -6/Factory | Spotted B-75 Beast 6702 | -6/Factory | Discovered new exit (range 17) 6723 | -6/Factory | Identified exit to Lower Caves 6729 | -6/Factory | Entered Lower Caves 6729 | -6/Lower Caves | Accompanied by 5 allies 6785 | -6/Lower Caves | Learned 12 Factory zone layouts 7012 | -6/Lower Caves | Discovered new exit (range 17) 7017 | -6/Lower Caves | A Derelict revealed a hidden shortcut to meet someone special 7032 | -6/Lower Caves | Identified exit to Lower Caves 7033 | -6/Lower Caves | Entered another Lower Caves area 7033 | -6/Lower Caves | Accompanied by 5 allies 7040 | -6/Lower Caves | Encountered a Warlord checkpoint 7435 | -6/Lower Caves | Discovered new exit (range 6) 7440 | -6/Lower Caves | Identified exit to Data Miner 7448 | -6/Lower Caves | Entered Data Miner 7448 | -6/Data Miner | Accompanied by 5 allies 7448 | -6/Data Miner | Discovered new exit (range 6) 7459 | -6/Data Miner | Identified exit to Proximity Caves 7476 | -6/Data Miner | Met Data Miner 7510 | -6/Data Miner | Learned location of Section 7 (-2) 7510 | -6/Data Miner | Acquired the access code to Warlord's prototype stash 7531 | -6/Data Miner | Received God Mode back door access code from Data Miner 7569 | -6/Data Miner | Entered Proximity Caves 7569 | -5/Proximity Caves | Accompanied by 5 allies 7700 | -5/Proximity Caves | Learned 4 Factory zone layouts 8026 | -5/Proximity Caves | Discovered new exit (range 6) 8061 | -5/Proximity Caves | Identified exit to Factory 8062 | -5/Proximity Caves | Entered Factory 8062 | -5/Factory | Evolved 2 slots: Utility x2 8063 | -5/Factory | Identified exit to Upper Caves 8066 | -5/Factory | Lost 4 allies 8284 | -5/Factory | Repaired Mak. Leg 8362 | -5/Factory | Build established: Scavenger-Tank 8408 | -5/Factory | Discovered new exit (range 9) 8424 | -5/Factory | Identified exit to Factory 8426 | -5/Factory | Entered another Factory area 8426 | -4/Factory | Evolved 2 slots: Utility x1, Weapon x1 8913 | -4/Factory | Core integrity fell below 50% 8924 | -4/Factory | Core integrity fell below 20% 8928 | -4/Factory | Destroyed by L-61 Swordsman with Power Sword Last Messages --------------- Particle Cannon destroyed. U-05 Engineer lays Concrete. Autogun destroyed. Overheating: Mak. Leg damaged (-4). Overheating: Hacking Suite damaged (-5). Overheating: Broken Neutrino Core damaged (-10). Overheating: Lrg. Storage Unit damaged (-146). U-05 Engineer lays Concrete. U-05 Engineer suffers critical hit (Burn). U-05 Engineer destroyed. Overheating: Energy bleed (-1). Mak. Leg destroyed. Broken Neutrino Core destroyed. Critical hit (Burn: +50). Critical hit (Burn: +37). Overheating: Hacking Suite damaged (-1). Adv. Terrain Scanner destroyed. Hacking Suite destroyed. Critical hit (Burn: +50). Critical hit (Burn: +37). Map ----- +----------------------------------------------------+ | | | | | | | | | | | | | | | | | | | | | | | | | | | ?????????????#????????????????#??????????????????? | | #??????????#???????????????#?????????????????????? | | ?????????????????????????????????????????????????? | | ??????#?????#?###????????????????????????????????? | | ???????????????#???#?????????#??????#???#????????? | | ????????#?#??#??????????????????????????#?#??????? | | ?#????##????????????#??????#?????????????????????? | | ????????????#?????#?????????#????????????????????? | | ??????????#??#????#????????##????????????????????? | | #????##?#????????????####?# ##???????????????????? | | ?????################### ## ####???? ???????????? | | ?????# ## #???"????????????? | | ??#??# "# @ " #? ?"??"?????????? | | ??#### "# "" l " #????????????????? | | #???#" "# " =%= " # ??????????????? | | ????#" ## " " #??? ????????????? | | ????#" ## #????????????????? | | ????#" ## " " #??##??????#?????? | | ??#?#" ## " " #???????? ???????? | | #??### # " *%[ #???#???? ???????? | | ????## ## *= #????#?#? ???????? | | ??#?## ## =% #??????#?????????? | | #???## ## gg #????#?#?????????? | | ???### ####+####### # ####?????? ????????? | | #???## # g g #??? ????????? | | ?#??## # * #????????????? | | ?????# # #????????????? | | ##???### ##???????????? | | ??????## ###??????????? | | ########## ##### ####+##### ##???????????? | | # #????# ! # #????????????? | | # ##???# # ???????????? | | + ###### """ """ #?? ??????????? | | !! # + """ """ #?? ???????????? | | !! # ###### """ """ #??? ???????????? | | ! # #????# #???? ?????????????? | | # #????# """ """ #??????????????????? | +----------------------------------------------------+ Best States ------------- Heat Dissipation 43 Energy Generation 23 Energy Capacity 455 Matter Stores 450 Matter Capacity 450 Sight Range 18 Robot Scan Range 14 Terrain Scan Range 20 Terrain Scan Density 10 Armor Coverage 450 Evasion (%) 55 Core Analysis 6 Offensive Hacking 10 Item Schematics ----------------- Proton Missile Launcher | -7/Zion | Archive Imp. Medium Treads | -7/Zion | Archive Mak. Laser | -7/Zion | Archive Hpw. Shock Rifle | -7/Zion | Archive Plasma Cannon | -7/Zion | Archive Fusion Compressor | -7/Zion | Archive Spear | -7/Zion | Archive Imp. Focal Shield | -7/Zion | Archive Adv. Shield Generator | -7/Zion | Archive Hvy. Riot Gun | -7/Zion | Archive Mak. System Shield | -7/Zion | Archive Hvy. Flak Cannon | -7/Zion | Archive Hvy. Plasma Cannon | -7/Zion | Archive Imp. Medium Armor Plating | -7/Zion | Archive Combat Drone Bay | -6/Data Miner | Free Lgt. Regenerative Plating | -6/Data Miner | Free Cld. Nuclear Pulse Thruster | -6/Data Miner | Free Imp. Thermal Defense Suite | -6/Data Miner | Free Enh. Coil Gun | -6/Data Miner | Free Adv. Medium Treads | -6/Data Miner | Free HERF Cannon | -6/Data Miner | Free Imp. Force Field | -6/Data Miner | Free Disruptor Cannon | -6/Data Miner | Free Micro-nuke Launcher | -6/Data Miner | Free Linear Accelerator | -6/Data Miner | Free Robot Schematics ------------------ M-28 Smith | -7/Zion | Archive R-06 Scavenger | -7/Zion | Archive O-24 Administrator | -7/Zion | Archive L-41 Fighter | -6/Data Miner | Free E-15 Imp | -6/Data Miner | Free G-50 Soldier | -6/Data Miner | Free X-72 Disruptor | -6/Data Miner | Free R-10 Processor | -6/Data Miner | Free D-63 Destroyer | -6/Data Miner | Free B-60 Warrior | -6/Data Miner | Free Fabricated ------------ Nothing Alien Tech Used ----------------- None Achievements -------------- Adventurer Dynamic Key Hey, That's Mine! I'm Back, Baby! Knowing Is Half The Battle Robot Respite The More The Merrier The One The Oracle Challenges ------------ None Game ------ Seed SupersonicPointFlightbrick Manual? 0 Play Time 01:10:13 Cumulative 6.1 hours Start 2024.04.07 @ 15:02:01 End 2024.04.07 @ 16:38:11 Sessions 1 Manual Loads 0 Difficulty Rogue Special Mode None Game No. 12 Rogue 12 Adventurer 0 Explorer 0 Win Type - Total 0 Types 0/0/0/0/0/0/0/0/0 Lore% 12 Gallery% 12 Achievement% 14 Wizard Run 0 Options --------- Layout 1 ASCII 0 Keyboard 0 Movement Numpad Keybinds 0 Fullscreen 2 Font 32/SmallcapsGlow Map View 50x35 Zoom Use 0% Tactical HUD 0 Map Filters NONE Filters NONE Steam 0 RUN: dd6ca268-e401-4740-9bf5-3165e2aad336